fUST/lending_fUST_20250429
["ID","MTS","AMOUNT","RATE_DAILY","PERIOD"]
[359260150,1745874654822,-289.5693854,0.00022465,2]
[359260151,1745874654831,-400.0,0.00022465,2]
[359260152,1745874654840,-400.0,0.00022465,2]
[359260153,1745874654849,-400.0,0.00022465,2]
[359260154,1745874654859,-400.0,0.00022465,2]
[359260155,1745874654868,-400.0,0.00022465,2]
[359260156,1745874654878,-400.0,0.00022465,2]
[359260157,1745874654887,-211.48291257,0.00022465,2]
[359260158,1745874654897,-400.0,0.00022465,2]
[359260159,1745874654907,-400.0,0.00022465,2]
[359260160,1745874654916,-200.0,0.00022465,2]
[359260161,1745874654925,-400.0,0.00022465,2]
[359260162,1745874654935,-400.0,0.00022465,2]
[359260163,1745874654944,-566.7,0.00022465,2]
[359260164,1745874654954,-400.0,0.00022465,2]
[359260165,1745874654964,-400.0,0.00022465,2]
[359260166,1745874654973,-381.32537077,0.00022465,2]
[359260167,1745874654982,-400.0,0.00022465,2]
[359260168,1745874654992,-400.0,0.00022465,2]
[359260169,1745874655001,-216.64834026,0.00022465,2]
[359260170,1745874655011,-207.6264653,0.00022465,2]
[359260171,1745874655021,-200.0,0.00022465,2]
[359260172,1745874655030,-436.45,0.00022465,2]
[359260173,1745874655039,-440.75,0.00022465,2]
[359260174,1745874655050,-200.0,0.00022465,2]
[359260175,1745874655063,-676.04,0.00022465,2]
[359260176,1745874655072,-400.0,0.00022465,2]
[359260177,1745874655082,-200.0,0.00022465,2]
[359260178,1745874655091,-400.0,0.00022465,2]
[359260179,1745874655103,-270.98678652,0.00022465,2]
[359260180,1745874655112,-400.0,0.00022465,2]
[359260181,1745874655122,-265.49057599,0.00022465,2]
[359260182,1745874655133,-1023.77,0.00022465,2]
[359260183,1745874655143,-200.0,0.00022465,2]
[359260184,1745874655152,-400.0,0.00022465,2]
[359260185,1745874655162,-400.0,0.00022465,2]
[359260186,1745874655171,-270.74249854,0.00022465,2]
[359260187,1745874655180,-400.0,0.00022465,2]
[359260188,1745874655190,-400.0,0.00022465,2]
[359260189,1745874655199,-400.0,0.00022465,2]
[359260190,1745874655209,-400.0,0.00022465,2]
[359260191,1745874655218,-200.0,0.00022465,2]
[359260192,1745874655228,-1511.69,0.00022465,2]
[359260193,1745874655238,-400.0,0.00022465,2]
[359260194,1745874655248,-400.0,0.00022465,2]
[359260195,1745874655258,-400.0,0.00022465,2]
[359260196,1745874655268,-400.0,0.00022465,2]
[359260197,1745874655277,-500.0,0.00022465,2]
[359260198,1745874655287,-706.15,0.00022465,2]
[359260199,1745874655296,-400.0,0.00022465,2]
[359260200,1745874655305,-272.91965947,0.00022465,2]
[359260201,1745874655315,-400.0,0.00022465,2]
[359260202,1745874655324,-400.0,0.00022465,2]
[359260203,1745874655334,-400.0,0.00022465,2]
[359260204,1745874655344,-151.0,0.00022465,7]
[359260205,1745874655353,-151.0,0.00022465,7]
[359260206,1745874655362,-400.0,0.00022465,2]
[359260207,1745874655372,-400.0,0.00022465,2]
[359260208,1745874655382,-400.0,0.00022465,2]
[359260209,1745874655391,-400.0,0.00022465,2]
[359260210,1745874655402,-400.0,0.00022465,2]
[359260211,1745874655411,-400.0,0.00022465,2]
[359260212,1745874655420,-400.0,0.00022465,2]
[359260213,1745874655430,-468.03,0.00022465,2]
[359260214,1745874655440,-400.0,0.00022465,2]
[359260215,1745874655449,-400.0,0.00022465,2]
[359260216,1745874655459,-400.0,0.00022465,2]
[359260217,1745874655468,-400.0,0.00022465,2]
[359260218,1745874655478,-400.0,0.00022465,2]
[359260219,1745874655487,-321.69716684,0.00022465,2]
[359260220,1745874655497,-400.0,0.00022465,2]
[359260221,1745874655507,-400.0,0.00022465,2]
[359260222,1745874655517,-966.51,0.00022465,2]
[359260223,1745874655526,-400.0,0.00022465,2]
[359260224,1745874655536,-400.0,0.00022465,2]
[359260225,1745874655545,-207.58768185,0.00022465,2]
[359260226,1745874655556,-205.6400833,0.00022465,2]
[359260227,1745874655566,-400.0,0.00022465,2]
[359260228,1745874655575,-400.0,0.00022465,2]
[359260229,1745874655585,-400.0,0.00022465,2]
[359260230,1745874655595,-400.0,0.00022465,2]
[359260231,1745874655604,-400.0,0.00022465,2]
[359260232,1745874655614,-400.0,0.00022465,2]
[359260233,1745874655623,-400.0,0.00022465,2]
[359260234,1745874655632,-785.89,0.00022465,2]
[359260235,1745874655641,-400.0,0.00022465,2]
[359260236,1745874655651,-400.0,0.00022465,2]
[359260237,1745874655660,-400.0,0.00022465,2]
[359260238,1745874655669,-200.0,0.00022465,2]
[359260239,1745874655678,-200.0,0.00022465,2]
[359260240,1745874655688,-400.0,0.00022465,2]
[359260241,1745874655697,-200.0,0.00022465,2]
[359260242,1745874655706,-400.0,0.00022465,2]
[359260243,1745874655715,-591.95,0.00022465,2]
[359260244,1745874655725,-200.0,0.00022465,2]
[359260245,1745874655734,-400.0,0.00022465,2]
[359260246,1745874655744,-400.0,0.00022465,2]
[359260247,1745874655753,-400.0,0.00022465,2]
[359260248,1745874655762,-274.70508525,0.00022465,2]
[359260249,1745874655771,-400.0,0.00022465,2]
[359260250,1745874655781,-215.32779319,0.00022465,2]
[359260251,1745874655790,-400.0,0.00022465,2]
[359260252,1745874655799,-400.0,0.00022465,2]
[359260253,1745874655809,-507.36,0.00022465,2]
[359260254,1745874655818,-400.0,0.00022465,2]
[359260255,1745874655827,-400.0,0.00022465,2]
[359260256,1745874655837,-400.0,0.00022465,2]
[359260257,1745874655846,-487.98,0.00022465,2]
[359260258,1745874655855,-400.0,0.00022465,2]
[359260259,1745874655865,-400.0,0.00022465,2]
[359260260,1745874655874,-432.62,0.00022465,2]
[359260261,1745874655883,-400.0,0.00022465,2]
[359260262,1745874655892,-400.0,0.00022465,2]
[359260263,1745874655902,-400.0,0.00022465,2]
[359260264,1745874655911,-151.0,0.00022465,7]
[359260265,1745874655920,-151.0,0.00022465,7]
[359260266,1745874655929,-210.00973993,0.00022465,2]
[359260267,1745874655939,-1184.07,0.00022465,2]
[359260268,1745874655949,-469.77,0.00022465,2]
[359260269,1745874655958,-167.59209837,0.00022465,2]
[359260270,1745874655967,-151.0,0.00022465,7]
[359260271,1745874655977,-498.42,0.00022465,2]
[359260272,1745874655986,-151.0,0.00022465,7]
[359260273,1745874655996,-498.48,0.00022465,2]
[359260274,1745874656005,-400.0,0.00022465,2]
[359260275,1745874656014,-151.0,0.00022465,7]
[359260276,1745874656024,-400.0,0.00022465,2]
[359260277,1745874656136,-400.0,0.00022465,2]
[359260278,1745874656146,-400.0,0.00022465,2]
[359260279,1745874656157,-400.0,0.00022465,2]
[359260280,1745874656167,-500.0,0.00022465,2]
[359260281,1745874656177,-400.0,0.00022465,2]
[359260282,1745874656187,-622.49,0.00022465,2]
[359260283,1745874656197,-400.0,0.00022465,2]
[359260284,1745874656207,-400.0,0.00022465,2]
[359260285,1745874656217,-200.0,0.00022465,2]
[359260286,1745874656228,-400.0,0.00022465,2]
[359260287,1745874656239,-400.0,0.00022465,2]
[359260288,1745874656249,-400.0,0.00022465,2]
[359260289,1745874656259,-400.0,0.00022465,2]
[359260290,1745874656268,-913.45,0.00022465,2]
[359260291,1745874656278,-2133.61,0.00022465,2]
[359260292,1745874656288,-1151.12,0.00022465,2]
[359260293,1745874656297,-4184.82,0.00022465,2]
[359260294,1745874656307,-632.7,0.00022465,2]
[359260295,1745874656317,-3999.0,0.00022465,2]
[359260296,1745874656327,-1101.41,0.00022465,2]
[359260297,1745874656337,-400.0,0.00022465,2]
[359260298,1745874656347,-400.0,0.00022465,2]
[359260299,1745874656356,-400.0,0.00022465,2]
[359260300,1745874656365,-400.0,0.00022465,2]
[359260301,1745874656373,-317.81151035,0.00022465,2]
[359260302,1745874656381,-804.7,0.00022465,2]
[359260303,1745874656390,-902.66,0.00022465,2]
[359260304,1745874656402,-400.0,0.00022465,2]
[359260305,1745874656413,-403.25,0.00022465,2]
[359260306,1745874656424,-400.0,0.00022465,2]
[359260307,1745874656434,-151.0,0.00022465,7]
[359260308,1745874656445,-206.26261494,0.00022465,2]
[359260309,1745874656456,-151.0,0.00022465,7]
[359260310,1745874656467,-213.56409681,0.00022465,2]
[359260311,1745874656476,-204.37599726,0.00022465,2]
[359260312,1745874656486,-593.65,0.00022465,2]
[359260313,1745874656495,-212.8970594,0.00022465,2]
[359260314,1745874656504,-500.50649787,0.00022465,2]
[359260315,1745874656514,-400.0,0.00022465,2]
[359260316,1745874656524,-400.0,0.00022465,2]
[359260317,1745874656534,-206.43113821,0.00022465,2]
[359260318,1745874656543,-2730.49,0.00022465,2]
[359260319,1745874656552,-151.0,0.00022465,7]
[359260320,1745874656562,-400.0,0.00022465,2]
[359260321,1745874656572,-400.0,0.00022465,2]
[359260322,1745874656581,-151.817538,0.00022465,7]
[359260323,1745874656591,-400.0,0.00022465,2]
[359260324,1745874656600,-767.07,0.00022465,2]
[359260325,1745874656610,-720.93,0.00022465,2]
[359260326,1745874656621,-200.0,0.00022465,2]
[359260327,1745874656630,-400.0,0.00022465,2]
[359260328,1745874656639,-2096.49,0.00022465,2]
[359260329,1745874656649,-200.0,0.00022465,2]
[359260330,1745874656660,-416.96,0.00022465,2]
[359260331,1745874656672,-400.0,0.00022465,2]
[359260332,1745874656683,-515.26,0.00022465,2]
[359260333,1745874656694,-200.0,0.00022465,2]
[359260334,1745874656704,-457.58,0.00022465,2]
[359260335,1745874656716,-634.4,0.00022465,2]
[359260336,1745874656726,-200.0,0.00022465,2]
[359260337,1745874656736,-400.0,0.00022465,2]
[359260338,1745874656745,-200.0,0.00022465,2]
[359260339,1745874656755,-1176.04,0.00022465,2]
[359260340,1745874656764,-2800.6,0.00022465,2]
[359260341,1745874656774,-200.0,0.00022465,2]
[359260342,1745874656783,-752.33,0.00022465,2]
[359260343,1745874656796,-400.0,0.00022465,2]
[359260344,1745874656806,-400.0,0.00022465,2]
[359260345,1745874656815,-205.54069586,0.00022465,2]
[359260346,1745874656825,-646.25,0.00022465,2]
[359260347,1745874656836,-400.0,0.00022465,2]
[359260348,1745874656846,-400.0,0.00022465,2]
[359260349,1745874656858,-400.0,0.00022465,2]
[359260350,1745874656870,-5052.81,0.00022465,2]
[359260351,1745874656879,-215.73450215,0.00022465,2]
[359260352,1745874656890,-653.89,0.00022465,2]
[359260353,1745874656899,-200.0,0.00022465,2]
[359260354,1745874656909,-667.25,0.00022465,2]
[359260355,1745874656918,-7076.58,0.00022465,2]
[359260356,1745874656927,-400.0,0.00022465,2]
[359260357,1745874656938,-400.0,0.00022465,2]
[359260358,1745874656948,-400.0,0.00022465,2]
[359260359,1745874656957,-200.0,0.00022465,2]
[359260360,1745874656967,-408.64,0.00022465,2]
[359260361,1745874656976,-400.0,0.00022465,2]
[359260362,1745874656986,-400.0,0.00022465,2]
[359260363,1745874656997,-400.0,0.00022465,2]
[359260364,1745874657007,-433.49,0.00022465,2]
[359260365,1745874657017,-400.0,0.00022465,2]
[359260366,1745874657027,-400.0,0.00022465,2]
[359260367,1745874657037,-205.63773441,0.00022465,2]
[359260368,1745874657047,-203.73291085,0.00022465,2]
[359260369,1745874657061,-400.0,0.00022465,2]
[359260370,1745874657072,-400.0,0.00022465,2]
[359260371,1745874657082,-400.0,0.00022465,2]
[359260372,1745874657091,-781.59,0.00022465,2]
[359260373,1745874657102,-400.0,0.00022465,2]
[359260374,1745874657111,-441.74,0.00022465,2]
[359260375,1745874657123,-337.95300832,0.00022465,2]
[359260376,1745874657134,-492.69,0.00022465,2]
[359260377,1745874657143,-624.69,0.00022465,2]
[359260378,1745874657153,-151.0,0.00022465,7]
[359260379,1745874657163,-156.612074,0.00022465,7]
[359260380,1745874657173,-151.0,0.00022465,7]
[359260381,1745874657183,-400.0,0.00022465,2]
[359260382,1745874657192,-400.0,0.00022465,2]
[359260383,1745874657202,-400.0,0.00022465,2]
[359260384,1745874657212,-204.08191819,0.00022465,2]
[359260385,1745874657221,-203.91898441,0.00022465,2]
[359260386,1745874657231,-205.74773765,0.00022465,2]
[359260387,1745874657240,-2994.57,0.00022465,2]
[359260388,1745874657249,-400.0,0.00022465,2]
[359260389,1745874657259,-2153.84,0.00022465,2]
[359260390,1745874657269,-403.48,0.00022465,2]
[359260391,1745874657279,-458.59,0.00022465,2]
[359260392,1745874657289,-200.0,0.00022465,2]
[359260393,1745874657298,-400.0,0.00022465,2]
[359260394,1745874657307,-400.0,0.00022465,2]
[359260395,1745874657316,-203.15591446,0.00022465,2]
[359260396,1745874657326,-400.0,0.00022465,2]
[359260397,1745874657335,-877.07,0.00022465,2]
[359260398,1745874657344,-400.0,0.00022465,2]
[359260399,1745874657354,-400.0,0.00022465,2]
[359260400,1745874657363,-400.0,0.00022465,2]
[359260401,1745874657372,-400.0,0.00022465,2]
[359260402,1745874657381,-200.0,0.00022465,2]
[359260403,1745874657390,-400.0,0.00022465,2]
[359260404,1745874657399,-200.0,0.00022465,2]
[359260405,1745874657409,-400.0,0.00022465,2]
[359260406,1745874657418,-400.0,0.00022465,2]
[359260407,1745874657428,-244.13937357,0.00022465,2]
[359260408,1745874657437,-400.0,0.00022465,2]
[359260409,1745874657447,-2368.24,0.00022465,2]
[359260410,1745874657456,-400.0,0.00022465,2]
[359260411,1745874657466,-400.0,0.00022465,2]
[359260412,1745874657475,-500.0,0.00022465,2]
[359260413,1745874657485,-151.0,0.00022465,7]
[359260414,1745874657494,-400.0,0.00022465,2]
[359260415,1745874657503,-151.0,0.00022465,7]
[359260416,1745874657512,-403.68,0.00022465,2]
[359260417,1745874657521,-207.92440152,0.00022465,2]
[359260418,1745874657532,-400.0,0.00022465,2]
[359260419,1745874657542,-854.56,0.00022465,2]
[359260420,1745874657552,-470.48,0.00022465,2]
[359260421,1745874657562,-400.0,0.00022465,2]
[359260422,1745874657572,-400.0,0.00022465,2]
[359260423,1745874657581,-400.0,0.00022465,2]
[359260424,1745874657593,-2700.32,0.00022465,2]
[359260425,1745874657604,-468.44,0.00022465,2]
[359260426,1745874657613,-151.0,0.00022465,2]
[359260427,1745874657623,-151.0,0.00022465,2]
[359260428,1745874657633,-218.22253615,0.00022465,2]
[359260429,1745874657642,-400.0,0.00022465,2]
[359260430,1745874657651,-2094.81,0.00022465,2]
[359260431,1745874657661,-2431.46,0.00022465,2]
[359260432,1745874657671,-400.0,0.00022465,2]
[359260433,1745874657681,-2080.6,0.00022465,2]
[359260434,1745874657692,-400.0,0.00022465,2]
[359260435,1745874657701,-843.96,0.00022465,2]
[359260436,1745874657712,-400.0,0.00022465,2]
[359260437,1745874657725,-769.73,0.00022465,2]
[359260438,1745874657735,-400.0,0.00022465,2]
[359260439,1745874657746,-494.29,0.00022465,2]
[359260440,1745874657756,-400.0,0.00022465,2]
[359260441,1745874657765,-207.1276707,0.00022465,2]
[359260442,1745874657774,-400.0,0.00022465,2]
[359260443,1745874657783,-400.0,0.00022465,2]
[359260444,1745874657793,-151.0,0.00022465,7]
[359260445,1745874657803,-302.63639381,0.00022465,2]
[359260446,1745874657814,-230.482611,0.00022465,7]
[359260447,1745874657826,-644.32,0.00022465,2]
[359260448,1745874657835,-400.0,0.00022465,2]
[359260449,1745874657845,-400.0,0.00022465,2]
[359260450,1745874657855,-400.0,0.00022465,2]
[359260451,1745874657865,-400.0,0.00022465,2]
[359260452,1745874657875,-1533.28,0.00022465,2]
[359260453,1745874657893,-508.44,0.00022465,2]
[359260454,1745874657906,-400.0,0.00022465,2]
[359260455,1745874657916,-400.0,0.00022465,2]
[359260456,1745874657927,-2944.67,0.00022465,2]
[359260457,1745874657938,-5364.52,0.00022465,2]
[359260458,1745874657951,-870.57,0.00022465,2]
[359260459,1745874657967,-400.0,0.00022465,2]
[359260460,1745874657978,-400.0,0.00022465,2]
[359260461,1745874657988,-203.02696017,0.00022465,2]
[359260462,1745874657998,-400.0,0.00022465,2]
[359260463,1745874658150,-400.0,0.00022465,2]
[359260464,1745874658172,-202.36041253,0.00022465,2]
[359260465,1745874658182,-400.0,0.00022465,2]
[359260466,1745874658192,-400.0,0.00022465,2]
[359260467,1745874658201,-2274.06,0.00022465,2]
[359260468,1745874658210,-2934.9,0.00022465,2]
[359260469,1745874658220,-400.0,0.00022465,2]
[359260470,1745874658230,-1979.2,0.00022465,2]
[359260471,1745874658240,-400.0,0.00022465,2]
[359260472,1745874658250,-445.16,0.00022465,2]
[359260473,1745874658260,-400.0,0.00022465,2]
[359260474,1745874658270,-400.0,0.00022465,2]
[359260475,1745874658281,-400.0,0.00022465,2]
[359260476,1745874658293,-2824.51,0.00022465,2]
[359260477,1745874658304,-400.0,0.00022465,2]
[359260478,1745874658314,-200.0,0.00022465,2]
[359260479,1745874658324,-400.0,0.00022465,2]
[359260480,1745874658334,-413.76,0.00022465,2]
[359260481,1745874658344,-500.0,0.00022465,2]
[359260482,1745874658354,-400.0,0.00022465,2]
[359260483,1745874658365,-530.09,0.00022465,2]
[359260484,1745874658375,-400.0,0.00022465,2]
[359260485,1745874658386,-400.0,0.00022465,2]
[359260486,1745874658395,-400.0,0.00022465,2]
[359260487,1745874658404,-400.0,0.00022465,2]
[359260488,1745874658413,-501.56,0.00022465,2]
[359260489,1745874658423,-206.37770677,0.00022465,2]
[359260490,1745874658432,-456.0,0.00022465,2]
[359260491,1745874658443,-683.46,0.00022465,2]
[359260492,1745874658452,-400.0,0.00022465,2]
[359260493,1745874658462,-400.0,0.00022465,2]
[359260494,1745874658471,-200.0,0.00022465,2]
[359260495,1745874658481,-445.37,0.00022465,2]
[359260496,1745874658495,-400.0,0.00022465,2]
[359260497,1745874658505,-400.0,0.00022465,2]
[359260498,1745874658515,-200.0,0.00022465,2]
[359260499,1745874658525,-538.85,0.00022465,2]
[359260500,1745874658534,-400.0,0.00022465,2]
[359260501,1745874658545,-317.5740501,0.00022465,2]
[359260502,1745874658555,-400.0,0.00022465,2]
[359260503,1745874658565,-151.0,0.00022465,7]
[359260504,1745874658578,-151.0,0.00022465,7]
[359260505,1745874658590,-400.0,0.00022465,2]
[359260506,1745874658599,-705.37,0.00022465,2]
[359260507,1745874658609,-200.0,0.00022465,2]
[359260508,1745874658619,-400.0,0.00022465,2]
[359260509,1745874658629,-400.0,0.00022465,2]
[359260510,1745874658640,-3049.43,0.00022465,2]
[359260511,1745874658650,-400.0,0.00022465,2]
[359260512,1745874658661,-475.16935125,0.00022465,2]
[359260513,1745874658670,-400.0,0.00022465,2]
[359260514,1745874658680,-3447.76,0.00022465,2]
[359260515,1745874658690,-415.2,0.00022465,2]
[359260516,1745874658699,-561.06,0.00022465,2]
[359260517,1745874658709,-400.0,0.00022465,2]
[359260518,1745874658719,-151.0,0.00022465,7]
[359260519,1745874658729,-151.0,0.00022465,7]
[359260520,1745874658738,-519.34,0.00022465,2]
[359260521,1745874658748,-151.0,0.00022465,7]
[359260522,1745874658757,-151.0,0.00022465,7]
[359260523,1745874658767,-490.61,0.00022465,2]
[359260524,1745874658777,-905.81,0.00022465,2]
[359260525,1745874658786,-160.0,0.00022465,7]
[359260526,1745874658796,-1719.60872572,0.00022663,2]
[359260527,1745874658807,-3000.0,0.000227,2]
[359260528,1745874658818,-151.0,0.000227,10]
[359260529,1745874658827,-1000.0,0.000227,2]
[359260530,1745874658838,-185.780431,0.000227,2]
[359260531,1745874658847,-3000.0,0.0002271,2]
[359260532,1745874658857,-3000.0,0.0002272,2]
[359260533,1745874658868,-3000.0,0.0002273,2]
[359260534,1745874658878,-400.0,0.00022739,2]
[359260535,1745874658888,-400.0,0.00022739,2]
[359260536,1745874658898,-400.0,0.00022739,2]
[359260537,1745874658907,-400.0,0.00022739,2]
[359260538,1745874658917,-400.0,0.00022739,2]
[359260539,1745874658927,-400.0,0.00022739,2]
[359260540,1745874658936,-400.0,0.00022739,2]
[359260541,1745874658946,-400.0,0.00022739,2]
[359260542,1745874658955,-400.0,0.00022739,2]
[359260543,1745874658965,-400.0,0.00022739,2]
[359260544,1745874658974,-629.27,0.00022739,2]
[359260545,1745874658984,-400.0,0.00022739,2]
[359260546,1745874658994,-400.0,0.00022739,2]
[359260547,1745874659004,-405.130785,0.00022739,2]
[359260548,1745874659013,-400.0,0.00022739,2]
[359260549,1745874659022,-151.0,0.00022739,2]
[359260550,1745874659031,-151.0,0.00022739,2]
[359260551,1745874659041,-400.0,0.00022739,2]
[359260552,1745874659053,-400.0,0.00022739,2]
[359260553,1745874659063,-400.0,0.00022739,2]
[359260554,1745874659072,-400.0,0.00022739,2]
[359260555,1745874659082,-400.0,0.00022739,2]
[359260556,1745874659091,-400.0,0.00022739,2]
[359260557,1745874659101,-400.0,0.00022739,2]
[359260558,1745874659111,-400.0,0.00022739,2]
[359260559,1745874659121,-400.0,0.00022739,2]
[359260560,1745874659130,-400.0,0.00022739,2]
[359260561,1745874659141,-400.0,0.00022739,2]
[359260562,1745874659150,-400.0,0.00022739,2]
[359260563,1745874659159,-400.0,0.00022739,2]
[359260564,1745874659169,-400.0,0.00022739,2]
[359260565,1745874659178,-400.0,0.00022739,2]
[359260566,1745874659187,-407.55189839,0.00022739,2]
[359260567,1745874659197,-400.0,0.00022739,2]
[359260568,1745874659206,-515.11,0.00022739,2]
[359260569,1745874659215,-400.0,0.00022739,2]
[359260570,1745874659225,-522.78448108,0.00022739,2]
[359260571,1745874659235,-400.0,0.00022739,2]
[359260572,1745874659245,-400.0,0.00022739,2]
[359260573,1745874659255,-400.0,0.00022739,2]
[359260574,1745874659264,-400.0,0.00022739,2]
[359260575,1745874659274,-400.0,0.00022739,2]
[359260576,1745874659285,-400.0,0.00022739,2]
[359260577,1745874659294,-400.0,0.00022739,2]
[359260578,1745874659304,-520.58,0.00022739,2]
[359260579,1745874659314,-400.0,0.00022739,2]
[359260580,1745874659323,-400.0,0.00022739,2]
[359260581,1745874659333,-400.0,0.00022739,2]
[359260582,1745874659342,-151.0,0.00022739,7]
[359260583,1745874659351,-400.0,0.00022739,2]
[359260584,1745874659360,-151.0,0.00022739,7]
[359260585,1745874659370,-400.0,0.00022739,2]
[359260586,1745874659380,-741.59,0.00022739,2]
[359260587,1745874659389,-400.0,0.00022739,2]
[359260588,1745874659398,-151.0,0.00022739,7]
[359260589,1745874659408,-151.0,0.00022739,7]
[359260590,1745874659417,-210.31507806,0.00022739,2]
[359260591,1745874659427,-400.0,0.00022739,2]
[359260592,1745874659436,-1023.67,0.00022739,2]
[359260593,1745874659445,-400.0,0.00022739,2]
[359260594,1745874659454,-400.0,0.00022739,2]
[359260595,1745874659464,-1918.68,0.00022739,2]
[359260596,1745874659473,-400.0,0.00022739,2]
[359260597,1745874659482,-400.0,0.00022739,2]
[359260598,1745874659492,-151.0,0.00022739,7]
[359260599,1745874659501,-400.0,0.00022739,2]
[359260600,1745874659510,-1774.93,0.00022739,2]
[359260601,1745874659519,-2272.84,0.00022739,2]
[359260602,1745874659529,-400.0,0.00022739,2]
[359260603,1745874659538,-400.0,0.00022739,2]
[359260604,1745874659548,-400.0,0.00022739,2]
[359260605,1745874659557,-400.0,0.00022739,2]
[359260606,1745874659567,-400.0,0.00022739,2]
[359260607,1745874659576,-400.0,0.00022739,2]
[359260608,1745874659585,-400.0,0.00022739,2]
[359260609,1745874659595,-400.0,0.00022739,2]
[359260610,1745874659604,-400.0,0.00022739,2]
[359260611,1745874659613,-400.0,0.00022739,2]
[359260612,1745874659623,-350.10683157,0.00022739,2]
[359260613,1745874659633,-550.39,0.00022739,2]
[359260614,1745874659643,-400.0,0.00022739,2]
[359260615,1745874659653,-151.0,0.00022739,7]
[359260616,1745874659664,-151.0,0.00022739,7]
[359260617,1745874659674,-400.0,0.00022739,2]
[359260618,1745874659685,-558.96,0.00022739,2]
[359260619,1745874659696,-151.0,0.00022739,7]
[359260620,1745874659706,-151.0,0.00022739,7]
[359260621,1745874659715,-1938.49,0.00022739,2]
[359260622,1745874659725,-151.0,0.00022739,7]
[359260623,1745874659734,-400.0,0.00022739,2]
[359260624,1745874659743,-400.0,0.00022739,2]
[359260625,1745874659753,-400.0,0.00022739,2]
[359260626,1745874659763,-400.0,0.00022739,2]
[359260627,1745874659772,-1664.37,0.00022739,2]
[359260628,1745874659782,-400.0,0.00022739,2]
[359260629,1745874659791,-400.0,0.00022739,2]
[359260630,1745874659800,-400.0,0.00022739,2]
[359260631,1745874659810,-400.0,0.00022739,2]
[359260632,1745874659819,-400.0,0.00022739,2]
[359260633,1745874659828,-1892.81,0.00022739,2]
[359260634,1745874659837,-341.51989825,0.00022739,2]
[359260635,1745874659944,-400.0,0.00022739,2]
[359260636,1745874659954,-400.0,0.00022739,2]
[359260637,1745874659964,-400.0,0.00022739,2]
[359260638,1745874659974,-400.0,0.00022739,2]
[359260639,1745874659984,-400.0,0.00022739,2]
[359260640,1745874659993,-237.13473451,0.00022739,2]
[359260641,1745874660003,-400.0,0.00022739,2]
[359260642,1745874660012,-400.0,0.00022739,2]
[359260643,1745874660022,-566.7,0.00022739,2]
[359260644,1745874660032,-415.06281772,0.00022739,2]
[359260645,1745874660041,-400.0,0.00022739,2]
[359260646,1745874660053,-400.0,0.00022739,2]
[359260647,1745874660064,-400.0,0.00022739,2]
[359260648,1745874660074,-436.45,0.00022739,2]
[359260649,1745874660083,-440.75,0.00022739,2]